[Event "94th Tradewise Hastings Congress"]
[Site "Hastings"]
[Date "2019.01.03"]
[Round "7"]
[White "Sugden, John N"]
[Black "Fowler, David"]
[Result "1-0"]
[ECO "B12"]
[WhiteElo "2072"]
[BlackElo "1929"]
[Annotator "NA"]
[PlyCount "77"]
[EventDate "2018.12.28"]
[EventType "swiss"]
[EventCountry "ENG"]
[SourceTitle "playchess.com"]
[Source "ChessBase"]
[SourceQuality "1"]
[TimeControl "40/6000+30:3000+30"]

1. e4 {[%emt 0:00:00]} c6 {[%emt 0:00:00]} 2. d4 {[%emt 0:00:00]} d5 {[%emt 0:00:00]} 3. e5 {[%emt 0:00:36]} Bf5 {[%emt 0:00:00]} 4. Nf3 {[%emt 0:00:31]} e6 {[%emt 0:00:00]} 5. Be2 {[%emt 0:00:32]} Nd7 {[%emt 0:00:06]} 6. O-O {[%emt 0:01:11]} Bg6 {[%emt 0:00:06]} 7. Bf4 {[%emt 0:16:54]} Nh6 {[%emt 0:04:14]} 8. Nbd2 {[%emt 0:08:01]} Nf5 {[%emt 0:01:05]} 9. c3 {[%emt 0:01:37]} Be7 {[%emt 0:05:06]} 10. b4 {[%emt 0:01:43]} O-O {[%emt 0:02:45]} 11. Nb3 {[%emt 0:01:22]} b6 {[%emt 0:06:08]} 12. Qd2 {[%emt 0:02:02]} c5 {[%emt 0:06:40]} 13. dxc5 {[%emt 0:01:51]} bxc5 {[%emt 0:02:17]} 14. a3 {[%emt 0:01:48]} Qc7 {[%emt 0:04:48]} 15. h3 {[%emt 0:11:34]} Nh4 {[%emt 0:06:17]} 16. Nxh4 {[%emt 0:03:26]} Bxh4 {[%emt 0:00:05]} 17. Qe3 {[%emt 0:01:31]} Bc2 {[%emt 0:09:46]} 18. Na5 {[%emt 0:02:05]} c4 {[%emt 0:03:04]} 19. Bd1 {[%emt 0:18:50]} Bd3 {[%emt 0:03:54]} 20. Re1 {[%emt 0:01:11]} Be7 {[%emt 0:00:58]} 21. Bg5 {[%emt 0:03:23]} Bxg5 {[%emt 0:04:18]} 22. Qxg5 {[%emt 0:00:08]} f6 {[%emt 0:02:01]} 23. exf6 {[%emt 0:02:11]} Rxf6 {[%emt 0:01:26]} 24. Bg4 {[%emt 0:06:33]} Be4 {[%emt 0:05:44]} 25. f3 {[%emt 0:03:15]} Qb6+ {[%emt 0:00:35]} 26. Qe3 {[%emt 0:02:42]} Bf5 {[%emt 0:05:10]} 27. Qxb6 {[%emt 0:03:04]} axb6 {[%emt 0:00:24]} 28. Nc6 {[%emt 0:00:39]} Bxg4 {[%emt 0:02:58]} 29. hxg4 {[%emt 0:00:29]} Kf7 {[%emt 0:01:20]} 30. a4 {[%emt 0:01:37]} h5 {[%emt 0:03:37]} 31. gxh5 {[%emt 0:01:08]} Rf5 {[%emt 0:00:38]} 32. Nd4 {[%emt 0:01:16]} Rxh5 {[%emt 0:01:24]} 33. Rxe6 {[%emt 0:02:05]} Re5 {[%emt 0:03:33]} 34. Rxe5 {[%emt 0:00:52]} Nxe5 {[%emt 0:00:06]} 35. a5 {[%emt 0:01:21]} g5 {[%emt 0:03:26]} 36. a6 {[%emt 0:01:19]} g4 {[%emt 0:02:23]} 37. fxg4 {[%emt 0:01:50]} Nxg4 {[%emt 0:00:23]} 38. Nb5 {[%emt 0:03:13]} Ke7 {[%emt 0:00:51]} 39. Nc7 {[%emt 0:00:55]} 1-0

[Event "94th Tradewise Hastings Congress"]
[Site "Hastings"]
[Date "2019.01.03"]
[Round "7"]
[White "Comellas Blanchart, Jordi"]
[Black "Payne, Matthew J"]
[Result "0-1"]
[ECO "E68"]
[WhiteElo "2055"]
[BlackElo "2182"]
[Annotator "NA"]
[PlyCount "58"]
[EventDate "2018.12.28"]
[EventType "swiss"]
[EventCountry "ENG"]
[SourceTitle "playchess.com"]
[Source "ChessBase"]
[SourceQuality "1"]
[TimeControl "40/6000+30:3000+30"]

1. d4 {[%emt 0:00:00]} Nf6 {[%emt 0:00:00]} 2. c4 {[%emt 0:00:00]} g6 {[%emt 0:00:00]} 3. g3 {[%emt 0:00:00]} Bg7 {[%emt 0:00:08]} 4. Bg2 {[%emt 0:00:23]} O-O {[%emt 0:00:30]} 5. Nc3 {[%emt 0:00:11]} d6 {[%emt 0:00:12]} 6. Nf3 {[%emt 0:00:06]} Nbd7 {[%emt 0:00:12]} 7. O-O {[%emt 0:00:15]} e5 {[%emt 0:00:12]} 8. e4 {[%emt 0:00:28]} exd4 {[%emt 0:00:29]} 9. Nxd4 {[%emt 0:00:15]} Re8 {[%emt 0:00:11]} 10. h3 {[%emt 0:01:24]} a6 {[%emt 0:01:02]} 11. Qc2 {[%emt 0:02:02]} Rb8 {[%emt 0:07:28]} 12. Rd1 {[%emt 0:01:40]} c6 {[%emt 0:12:11]} 13. Bf4 {[%emt 0:09:53]} Qc7 {[%emt 0:03:20]} 14. c5 {[%emt 0:23:12]} Nxc5 {[%emt 0:00:18]} 15. Ndb5 {[%emt 0:01:38]} axb5 {[%emt 0:01:01]} 16. Bxd6 {[%emt 0:01:37]} Qa5 {[%emt 0:01:11]} 17. Bxb8 {[%emt 0:05:01]} b4 {[%emt 0:00:18]} 18. Ne2 {[%emt 0:11:31]} Nfxe4 {[%emt 0:00:13]} 19. Bf4 {[%emt 0:08:40]} Bf5 {[%emt 0:03:21]} 20. Qc1 {[%emt 0:02:58]} Nxf2 {[%emt 0:12:34]} 21. Kxf2 {[%emt 0:03:04]} Nd3+ {[%emt 0:00:03]} 22. Rxd3 {[%emt 0:00:20]} Bxd3 {[%emt 0:00:04]} 23. Bf3 {[%emt 0:02:48]} Bxe2 {[%emt 0:00:09]} 24. Bxe2 {[%emt 0:00:40]} Bd4+ {[%emt 0:00:04]} 25. Ke1 {[%emt 0:06:24]} b3+ {[%emt 0:02:34]} 26. Bd2 {[%emt 0:00:30]} Qd5 {[%emt 0:00:09]} 27. Kd1 {[%emt 0:01:00]} Qg2 {[%emt 0:04:45]} 28. Qc4 {[%emt 0:00:54]} Bxb2 {[%emt 0:00:56]} 29. Bc3 {[%emt 0:01:45]} Bxc3 {[%emt 0:00:16]} 0-1

[Event "94th Tradewise Hastings Congress"]
[Site "Hastings"]
[Date "2019.01.03"]
[Round "7"]
[White "Armstrong, Malcolm J"]
[Black "Pitschka, Claus"]
[Result "1-0"]
[ECO "A44"]
[WhiteElo "2052"]
[BlackElo "2241"]
[Annotator "NA"]
[PlyCount "115"]
[EventDate "2018.12.28"]
[EventType "swiss"]
[EventCountry "ENG"]
[SourceTitle "playchess.com"]
[Source "ChessBase"]
[SourceQuality "1"]
[TimeControl "40/6000+30:3000+30"]

1. d4 {[%emt 0:00:00]} c5 {[%emt 0:03:59]} 2. d5 {[%emt 0:00:15]} d6 {[%emt 0:01:13]} 3. c4 {[%emt 0:00:58]} e5 {[%emt 0:00:20]} 4. e4 {[%emt 0:01:45]} Be7 {[%emt 0:00:15]} 5. Bd3 {[%emt 0:00:29]} Bg5 {[%emt 0:00:45]} 6. Nd2 {[%emt 0:03:02]} Ne7 {[%emt 0:03:54]} 7. h4 {[%emt 0:06:56]} Bh6 {[%emt 0:02:29]} 8. g4 $14 {[%emt 0:03:03]} Bxd2+ {[%emt 0:06:58]} 9. Bxd2 {[%emt 0:00:29]} Bd7 {[%emt 0:04:00]} 10. Qe2 {[%emt 0:04:31]} Na6 {[%emt 0:05:00]} 11. f4 {[%emt 0:06:43]} exf4 {[%emt 0:05:59]} 12. e5 {[%emt 0:06:17]} dxe5 {[%emt 0:03:25]} 13. Qxe5 {[%emt 0:00:33]} O-O {[%emt 0:00:22]} 14. Bc3 {[%emt 0:05:29]} f6 {[%emt 0:00:17]} 15. Qxf4 {[%emt 0:01:02]} Ng6 {[%emt 0:04:22]} 16. Bxg6 {[%emt 0:05:40]} hxg6 {[%emt 0:03:39]} 17. O-O-O {[%emt 0:00:36]} Nb4 {[%emt 0:02:10]} 18. Kb1 {[%emt 0:10:22]} Qc8 {[%emt 0:03:29]} 19. Bxb4 {[%emt 0:02:07]} cxb4 {[%emt 0:00:55]} 20. Rd4 {[%emt 0:03:20]} Qc5 {[%emt 0:05:39]} 21. Nf3 {[%emt 0:04:16]} b5 {[%emt 0:01:50]} 22. Rc1 {[%emt 0:03:34]} Rac8 {[%emt 0:06:29]} 23. Nd2 {[%emt 0:10:33]} bxc4 {[%emt 0:10:22]} 24. Rcxc4 {[%emt 0:01:27]} Qb5 {[%emt 0:00:31]} 25. Qf1 {[%emt 0:09:31]} a5 {[%emt 0:06:46]} 26. b3 {[%emt 0:05:53]} Rfe8 {[%emt 0:04:44]} 27. Rxc8 {[%emt 0:04:05]} Qxf1+ {[%emt 0:00:10]} 28. Nxf1 {[%emt 0:00:05]} Bxc8 {[%emt 0:00:21]} 29. Nd2 {[%emt 0:00:12]} Re1+ {[%emt 0:07:27]} 30. Kc2 {[%emt 0:00:50]} Ra1 {[%emt 0:02:37]} 31. Kb2 {[%emt 0:03:10]} Rg1 {[%emt 0:00:08]} 32. Nc4 {[%emt 0:00:59]} Rg2+ {[%emt 0:08:53]} 33. Kc1 {[%emt 0:00:34]} Rxg4 {[%emt 0:00:27]} 34. Rxg4 {[%emt 0:00:41]} Bxg4 {[%emt 0:00:05]} 35. Nxa5 {[%emt 0:03:03]} Bf3 {[%emt 0:00:09]} 36. Nc6 {[%emt 0:00:21]} Bxd5 {[%emt 0:00:31]} 37. Nxb4 {[%emt 0:00:10]} Be6 {[%emt 0:00:57]} 38. Kd2 {[%emt 0:01:55]} Kf7 {[%emt 0:06:32]} 39. Nc6 {[%emt 0:01:12]} Bd5 {[%emt 0:00:19]} 40. Nd4 {[%emt 0:00:20]} f5 {[%emt 0:00:53]} 41. Ke3 {[%emt 0:50:30]} Kf6 {[%emt 0:50:18]} 42. Kf4 {[%emt 0:03:13]} Ke7 {[%emt 0:00:00]} 43. Ke5 {[%emt 0:00:00]} Bf7 {[%emt 0:00:00]} 44. a4 {[%emt 0:00:00]} Kd7 {[%emt 0:00:00]} 45. b4 {[%emt 0:00:00]} Kc7 {[%emt 0:00:00]} 46. a5 {[%emt 0:00:00]} Bc4 {[%emt 0:00:00]} 47. Nf3 {[%emt 0:00:00]} Kc6 {[%emt 0:00:00]} 48. Kd4 {[%emt 0:00:00]} Be2 {[%emt 0:00:00]} 49. Ne5+ {[%emt 0:00:00]} Kb5 {[%emt 0:00:00]} 50. Ke3 {[%emt 0:00:00]} Bd1 {[%emt 0:00:00]} 51. Nxg6 {[%emt 0:00:00]} Bc2 {[%emt 0:00:00]} 52. Kd2 {[%emt 0:00:00]} Be4 {[%emt 0:00:00]} 53. Kc3 {[%emt 0:00:00]} Bd5 {[%emt 0:00:00]} 54. Nf4 {[%emt 0:00:00]} Bc4 {[%emt 0:00:00]} 55. Nh5 {[%emt 0:00:00]} Bd5 {[%emt 0:00:00]} 56. Nxg7 {[%emt 0:00:00]} f4 {[%emt 0:00:00]} 57. Nf5 {[%emt 0:00:00]} f3 {[%emt 0:00:00]} 58. Ng3 {[%emt 0:00:00]} 1-0

[Event "94th Tradewise Hastings Congress"]
[Site "Hastings"]
[Date "2019.01.03"]
[Round "7"]
[White "Rayner, Francis"]
[Black "Moore, Graham J"]
[Result "0-1"]
[ECO "A20"]
[WhiteElo "2048"]
[BlackElo "2235"]
[Annotator "NA"]
[PlyCount "122"]
[EventDate "2018.12.28"]
[EventType "swiss"]
[EventCountry "ENG"]
[SourceTitle "playchess.com"]
[Source "ChessBase"]
[SourceQuality "1"]
[TimeControl "40/6000+30:3000+30"]

1. c4 {[%emt 0:00:07]} e5 {[%emt 0:00:00]} 2. g3 {[%emt 0:03:03]} c6 {[%emt 0:00:00]} 3. d4 {[%emt 0:02:53]} e4 {[%emt 0:00:21]} 4. Nc3 {[%emt 0:02:21]} d5 {[%emt 0:01:26]} 5. Qb3 {[%emt 0:05:06]} Nf6 {[%emt 0:00:18]} 6. cxd5 {[%emt 0:03:32]} cxd5 {[%emt 0:00:06]} 7. Bg5 {[%emt 0:00:13]} Nbd7 {[%emt 0:00:08]} 8. Nh3 {[%emt 0:10:48]} Qa5 {[%emt 0:07:55]} 9. Bg2 {[%emt 0:03:53]} Bb4 $14 {[%emt 0:02:11]} 10. O-O {[%emt 0:01:26]} h6 {[%emt 0:02:49]} 11. Bd2 {[%emt 0:06:23]} O-O {[%emt 0:01:01]} 12. Rfd1 {[%emt 0:03:53]} Bxc3 {[%emt 0:01:17]} 13. Bxc3 {[%emt 0:01:46]} Qa6 {[%emt 0:01:32]} 14. Nf4 {[%emt 0:02:40]} Nb6 {[%emt 0:00:07]} 15. Bb4 {[%emt 0:01:30]} Re8 {[%emt 0:00:51]} 16. e3 {[%emt 0:01:03]} Bd7 {[%emt 0:04:26]} 17. Rdc1 {[%emt 0:04:33]} g5 {[%emt 0:01:21]} 18. Bf1 {[%emt 0:01:59]} Bb5 {[%emt 0:01:18]} 19. Bxb5 {[%emt 0:02:57]} Qxb5 {[%emt 0:00:08]} 20. Nh3 {[%emt 0:05:00]} Nc4 {[%emt 0:02:12]} 21. a4 {[%emt 0:04:48]} Na5 {[%emt 0:11:14]} 22. Qc3 {[%emt 0:02:44]} Qd7 {[%emt 0:00:10]} 23. Kg2 {[%emt 0:01:11]} Rac8 {[%emt 0:00:44]} 24. Qe1 {[%emt 0:01:56]} Rxc1 {[%emt 0:02:03]} 25. Rxc1 {[%emt 0:00:09]} Nc4 {[%emt 0:00:18]} 26. Qc3 {[%emt 0:02:03]} Rc8 {[%emt 0:09:12]} 27. b3 {[%emt 0:00:35]} Nd6 {[%emt 0:01:01]} 28. Qd2 {[%emt 0:00:09]} Nf5 {[%emt 0:00:49]} 29. Ng1 {[%emt 0:02:52]} Rxc1 {[%emt 0:13:26]} 30. Qxc1 {[%emt 0:00:01]} b6 {[%emt 0:00:08]} 31. h3 {[%emt 0:03:43]} h5 {[%emt 0:02:06]} 32. a5 {[%emt 0:02:09]} h4 {[%emt 0:01:27]} 33. g4 {[%emt 0:03:00]} Ng7 {[%emt 0:00:12]} 34. axb6 {[%emt 0:03:34]} axb6 {[%emt 0:00:05]} 35. Qf1 {[%emt 0:00:56]} Ne6 {[%emt 0:07:02]} 36. Qa6 {[%emt 0:00:56]} Qc6 {[%emt 0:04:40]} 37. Qa7 {[%emt 0:03:04]} Kg7 {[%emt 0:03:10]} 38. Qb8 {[%emt 0:01:06]} Ne8 {[%emt 0:06:36]} 39. Qe5+ {[%emt 0:02:31]} f6 {[%emt 0:00:24]} 40. Qb8 {[%emt 0:04:14]} Kg6 {[%emt 0:00:26]} 41. Qa7 {[%emt 0:50:58]} N8g7 {[%emt 0:50:52]} 42. Qa4 {[%emt 0:03:30]} Qc2 {[%emt 0:00:24]} 43. Qb5 {[%emt 0:02:21]} Qxb3 {[%emt 0:02:39]} 44. Qxb6 {[%emt 0:01:21]} Qc4 {[%emt 0:00:46]} 45. Qd6 {[%emt 0:02:07]} Nf4+ {[%emt 0:15:05]} 46. exf4 {[%emt 0:02:15]} gxf4 {[%emt 0:00:47]} 47. Bc5 {[%emt 0:00:00]} f3+ {[%emt 0:00:00]} 48. Nxf3 {[%emt 0:00:00]} exf3+ {[%emt 0:00:00]} 49. Kxf3 {[%emt 0:00:00]} Qf1 {[%emt 0:00:00]} 50. Qf4 {[%emt 0:00:00]} Qxh3+ {[%emt 0:00:00]} 51. Ke2 {[%emt 0:00:00]} Qb3 {[%emt 0:00:00]} 52. Be7 {[%emt 0:00:00]} Qb6 {[%emt 0:00:00]} 53. Kf3 {[%emt 0:00:00]} Kf7 {[%emt 0:00:00]} 54. Bc5 {[%emt 0:00:00]} Qb3+ {[%emt 0:00:00]} 55. Kg2 {[%emt 0:00:00]} Ne6 {[%emt 0:00:00]} 56. Qd6 {[%emt 0:00:00]} h3+ {[%emt 0:00:00]} 57. Kh2 {[%emt 0:00:00]} Qf3 {[%emt 0:00:00]} 58. Qe7+ {[%emt 0:00:00]} Kg6 {[%emt 0:00:00]} 59. Qe8+ {[%emt 0:00:00]} Kg7 {[%emt 0:00:00]} 60. Qe7+ {[%emt 0:00:00]} Kh6 {[%emt 0:00:00]} 61. g5+ {[%emt 0:00:00]} Kxg5 {[%emt 0:00:00]} 0-1

[Event "94th Tradewise Hastings Congress"]
[Site "Hastings"]
[Date "2019.01.03"]
[Round "7"]
[White "Barton, R Alan"]
[Black "Chapman, Matt"]
[Result "0-1"]
[ECO "D04"]
[WhiteElo "2037"]
[BlackElo "1902"]
[Annotator "NA"]
[PlyCount "112"]
[EventDate "2018.12.28"]
[EventType "swiss"]
[EventCountry "ENG"]
[SourceTitle "playchess.com"]
[Source "ChessBase"]
[SourceQuality "1"]
[TimeControl "40/6000+30:3000+30"]

1. Nf3 {[%emt 0:00:00]} d5 {[%emt 0:00:00]} 2. d4 {[%emt 0:00:55]} Nf6 {[%emt 0:00:00]} 3. e3 {[%emt 0:00:58]} c5 {[%emt 0:00:47]} 4. Nbd2 {[%emt 0:03:50]} Nc6 {[%emt 0:02:23]} 5. Bb5 {[%emt 0:04:37]} Qb6 {[%emt 0:05:08]} 6. a4 {[%emt 0:03:40]} e6 {[%emt 0:03:12]} 7. O-O {[%emt 0:03:56]} Bd6 {[%emt 0:03:48]} 8. b3 {[%emt 0:03:19]} cxd4 {[%emt 0:02:08]} 9. Nxd4 {[%emt 0:05:30]} O-O {[%emt 0:01:38]} 10. Nxc6 {[%emt 0:00:36]} bxc6 {[%emt 0:00:14]} 11. Bd3 {[%emt 0:00:20]} a5 {[%emt 0:03:18]} 12. Bb2 {[%emt 0:02:10]} e5 {[%emt 0:03:13]} 13. e4 {[%emt 0:02:17]} Re8 {[%emt 0:03:08]} 14. h3 {[%emt 0:03:00]} Bb7 {[%emt 0:06:26]} 15. Re1 {[%emt 0:02:54]} Bc5 {[%emt 0:11:19]} 16. Qf3 {[%emt 0:03:50]} Qc7 {[%emt 0:07:11]} 17. Rad1 {[%emt 0:03:29]} Re7 {[%emt 0:02:46]} 18. c4 {[%emt 0:03:06]} d4 {[%emt 0:02:36]} 19. Nf1 {[%emt 0:01:42]} Bb4 {[%emt 0:02:56]} 20. Re2 {[%emt 0:02:50]} Nd7 {[%emt 0:00:35]} 21. Ng3 {[%emt 0:01:57]} g6 {[%emt 0:02:37]} 22. Bc1 {[%emt 0:01:24]} Ree8 {[%emt 0:02:04]} 23. Bh6 {[%emt 0:04:17]} Bf8 {[%emt 0:01:11]} 24. Bxf8 {[%emt 0:01:04]} Kxf8 {[%emt 0:00:21]} 25. h4 {[%emt 0:08:30]} Nc5 {[%emt 0:02:12]} 26. Rb2 {[%emt 0:03:38]} Qe7 {[%emt 0:01:49]} 27. h5 {[%emt 0:05:52]} Bc8 {[%emt 0:01:24]} 28. hxg6 {[%emt 0:00:47]} hxg6 {[%emt 0:00:10]} 29. Qe2 {[%emt 0:05:21]} Qg5 {[%emt 0:05:32]} 30. Nf1 {[%emt 0:08:16]} Rb8 {[%emt 0:02:57]} 31. Nd2 {[%emt 0:04:16]} Bg4 {[%emt 0:02:30]} 32. f3 {[%emt 0:01:31]} Be6 {[%emt 0:00:19]} 33. Rdb1 {[%emt 0:00:54]} Rb4 {[%emt 0:01:00]} 34. Nf1 {[%emt 0:01:52]} Reb8 {[%emt 0:00:45]} 35. Qc2 {[%emt 0:01:14]} Nxd3 {[%emt 0:08:16]} 36. Qxd3 {[%emt 0:00:05]} Bxc4 {[%emt 0:00:14]} 37. Qc2 {[%emt 0:04:22]} Be6 {[%emt 0:00:31]} 38. Qc5+ {[%emt 0:04:20]} Kg7 {[%emt 0:01:12]} 39. Qxa5 {[%emt 0:00:05]} Rxb3 {[%emt 0:10:39]} 40. Rxb3 {[%emt 0:00:24]} Rxb3 {[%emt 0:00:10]} 41. Rxb3 {[%emt 0:50:37]} Bxb3 {[%emt 0:50:05]} 42. Qb4 {[%emt 0:01:03]} Bd1 {[%emt 0:06:28]} 43. Kf2 {[%emt 0:02:09]} Qc1 {[%emt 0:01:11]} 44. a5 {[%emt 0:01:55]} Qc2+ {[%emt 0:04:44]} 45. Qd2 {[%emt 0:00:00]} Qa4 {[%emt 0:00:00]} 46. Ng3 {[%emt 0:00:00]} Bb3 {[%emt 0:00:00]} 47. Nf5+ {[%emt 0:00:00]} Kf6 {[%emt 0:00:00]} 48. Qh6 {[%emt 0:00:00]} Ke6 {[%emt 0:00:00]} 49. Ng7+ {[%emt 0:00:00]} Kd7 {[%emt 0:00:00]} 50. Qh3+ {[%emt 0:00:00]} Kd6 {[%emt 0:00:00]} 51. Qc8 {[%emt 0:00:00]} Kc5 {[%emt 0:00:00]} 52. Qb8 {[%emt 0:00:00]} Qa2+ {[%emt 0:00:00]} 53. Kg3 {[%emt 0:00:00]} d3 {[%emt 0:00:00]} 54. Qxe5+ {[%emt 0:00:00]} Kc4 {[%emt 0:00:00]} 55. Ne8 {[%emt 0:00:00]} d2 {[%emt 0:00:00]} 56. Nd6+ {[%emt 0:00:00]} Kd3 {[%emt 0:00:00]} 0-1

[Event "94th Tradewise Hastings Congress"]
[Site "Hastings"]
[Date "2019.01.03"]
[Round "7"]
[White "Norinkeviciute, Rasa"]
[Black "Metcalfe, Charlie P"]
[Result "1-0"]
[ECO "A29"]
[WhiteElo "2028"]
[BlackElo "1797"]
[Annotator "NA"]
[PlyCount "60"]
[EventDate "2018.12.28"]
[EventType "swiss"]
[EventCountry "ENG"]
[SourceTitle "playchess.com"]
[Source "ChessBase"]
[SourceQuality "1"]
[TimeControl "40/6000+30:3000+30"]

1. c4 {[%emt 0:00:00]} e5 {[%emt 0:00:00]} 2. g3 {[%emt 0:00:00]} Nf6 {[%emt 0:00:00]} 3. Bg2 {[%emt 0:00:14]} d5 {[%emt 0:00:00]} 4. cxd5 {[%emt 0:00:10]} Nxd5 {[%emt 0:00:00]} 5. Nc3 {[%emt 0:00:28]} Nb6 {[%emt 0:00:00]} 6. Nf3 {[%emt 0:02:06]} Nc6 {[%emt 0:00:00]} 7. d3 {[%emt 0:03:22]} Be7 {[%emt 0:00:05]} 8. O-O {[%emt 0:05:44]} O-O {[%emt 0:00:02]} 9. Be3 {[%emt 0:00:30]} Be6 {[%emt 0:00:17]} 10. Na4 {[%emt 0:03:22]} Nd5 {[%emt 0:06:00]} 11. Bc5 {[%emt 0:04:45]} f6 {[%emt 0:22:18]} 12. Rc1 {[%emt 0:03:55]} Rb8 {[%emt 0:27:14]} 13. Bxe7 {[%emt 0:23:27]} Qxe7 {[%emt 0:00:03]} 14. Nc5 {[%emt 0:01:20]} Bf7 {[%emt 0:02:39]} 15. Qa4 {[%emt 0:07:50]} Nb6 {[%emt 0:14:06]} 16. Qa3 {[%emt 0:04:35]} Bd5 {[%emt 0:09:16]} 17. b4 {[%emt 0:05:16]} a6 {[%emt 0:13:04]} 18. Qb2 {[%emt 0:03:15]} Qd6 {[%emt 0:06:49]} 19. Rfd1 {[%emt 0:03:00]} Nd4 {[%emt 0:02:13]} 20. e4 {[%emt 0:08:02]} Nxf3+ {[%emt 0:02:26]} 21. Bxf3 {[%emt 0:00:06]} Bf7 {[%emt 0:00:54]} 22. d4 {[%emt 0:02:38]} Nc4 {[%emt 0:03:01]} 23. Qc3 {[%emt 0:00:29]} b6 {[%emt 0:00:29]} 24. dxe5 {[%emt 0:01:55]} Qxe5 {[%emt 0:00:18]} 25. Nd7 {[%emt 0:02:12]} Qxc3 {[%emt 0:00:33]} 26. Rxc3 {[%emt 0:00:09]} Ne5 {[%emt 0:00:32]} 27. Nxb8 {[%emt 0:09:58]} Nxf3+ {[%emt 0:00:03]} 28. Kg2 {[%emt 0:05:52]} Bh5 {[%emt 0:00:54]} 29. Nd7 {[%emt 0:03:24]} Rf7 {[%emt 0:00:33]} 30. Rxc7 {[%emt 0:01:56]} Rxd7 {[%emt 0:00:36]} 1-0

[Event "94th Tradewise Hastings Congress"]
[Site "Hastings"]
[Date "2019.01.03"]
[Round "7"]
[White "Midhun, P U"]
[Black "Spiegel, Stefan"]
[Result "1-0"]
[ECO "E07"]
[WhiteElo "2010"]
[BlackElo "2124"]
[Annotator "NA"]
[PlyCount "85"]
[EventDate "2018.12.28"]
[EventType "swiss"]
[EventCountry "ENG"]
[SourceTitle "playchess.com"]
[Source "ChessBase"]
[SourceQuality "1"]
[TimeControl "40/6000+30:3000+30"]

1. Nf3 {[%emt 0:00:00]} Nf6 {[%emt 0:00:00]} 2. g3 {[%emt 0:00:00]} e6 {[%emt 0:00:09]} 3. Bg2 {[%emt 0:00:39]} d5 {[%emt 0:00:12]} 4. d4 {[%emt 0:03:27]} Be7 {[%emt 0:00:59]} 5. O-O {[%emt 0:00:07]} O-O {[%emt 0:00:16]} 6. c4 {[%emt 0:01:52]} c6 {[%emt 0:01:10]} 7. Nc3 {[%emt 0:00:40]} Nbd7 {[%emt 0:00:33]} 8. b3 {[%emt 0:03:22]} b6 {[%emt 0:02:00]} 9. Bb2 {[%emt 0:04:55]} Ba6 {[%emt 0:02:11]} 10. Rc1 {[%emt 0:00:34]} Rc8 {[%emt 0:01:14]} 11. Re1 {[%emt 0:20:09]} dxc4 {[%emt 0:04:19]} 12. bxc4 {[%emt 0:00:05]} Bxc4 {[%emt 0:02:34]} 13. Nd2 {[%emt 0:00:06]} Ba6 {[%emt 0:01:16]} 14. Qa4 {[%emt 0:00:40]} Nb8 {[%emt 0:00:58]} 15. e4 {[%emt 0:02:00]} b5 {[%emt 0:01:50]} 16. Qb3 {[%emt 0:00:46]} Nbd7 {[%emt 0:00:42]} 17. Ba3 {[%emt 0:02:07]} Bxa3 {[%emt 0:04:47]} 18. Qxa3 {[%emt 0:00:02]} Qb6 {[%emt 0:00:07]} 19. Bf1 {[%emt 0:24:45]} Bb7 {[%emt 0:00:05]} 20. Qd6 {[%emt 0:01:10]} Rfd8 {[%emt 0:00:27]} 21. Nb3 {[%emt 0:03:50]} a5 {[%emt 0:02:43]} 22. Qf4 {[%emt 0:01:20]} a4 {[%emt 0:00:14]} 23. Nc5 {[%emt 0:00:31]} Nf8 {[%emt 0:00:59]} 24. e5 {[%emt 0:10:07]} Nd5 {[%emt 0:01:16]} 25. Nxd5 {[%emt 0:00:34]} Rxd5 {[%emt 0:00:11]} 26. Bg2 {[%emt 0:00:43]} Rdd8 {[%emt 0:00:06]} 27. Red1 {[%emt 0:03:14]} Ba8 {[%emt 0:00:44]} 28. h4 {[%emt 0:03:00]} Qc7 {[%emt 0:07:16]} 29. Ne4 {[%emt 0:03:27]} f5 {[%emt 0:01:22]} 30. Nd6 {[%emt 0:03:06]} Ng6 {[%emt 0:00:06]} 31. Qg5 {[%emt 0:01:57]} Rxd6 {[%emt 0:00:08]} 32. exd6 {[%emt 0:00:10]} Qxd6 {[%emt 0:00:03]} 33. h5 {[%emt 0:00:27]} Nf8 {[%emt 0:00:21]} 34. d5 {[%emt 0:00:44]} h6 {[%emt 0:00:13]} 35. Qe3 {[%emt 0:00:55]} e5 {[%emt 0:05:20]} 36. dxc6 {[%emt 0:00:29]} Qf6 {[%emt 0:00:03]} 37. Bd5+ {[%emt 0:04:00]} Kh8 {[%emt 0:00:07]} 38. c7 {[%emt 0:02:45]} f4 {[%emt 0:00:27]} 39. Qf3 {[%emt 0:00:48]} Bxd5 {[%emt 0:00:23]} 40. Rxd5 {[%emt 0:00:50]} Ne6 {[%emt 0:00:07]} 41. Rd7 {[%emt 0:56:33]} Nd4 {[%emt 0:52:15]} 42. Qb7 {[%emt 0:01:29]} fxg3 {[%emt 0:00:14]} 43. Rd8+ {[%emt 0:02:07]} 1-0

[Event "94th Tradewise Hastings Congress"]
[Site "Hastings"]
[Date "2019.01.03"]
[Round "7"]
[White "Royal, Shreyas"]
[Black "White, Stuart A"]
[Result "1/2-1/2"]
[ECO "E00"]
[WhiteElo "1930"]
[BlackElo "2096"]
[Annotator "NA"]
[PlyCount "85"]
[EventDate "2018.12.28"]
[EventType "swiss"]
[EventCountry "ENG"]
[SourceTitle "playchess.com"]
[Source "ChessBase"]
[SourceQuality "1"]
[TimeControl "40/6000+30:3000+30"]

1. d4 {[%emt 0:00:00]} Nf6 {[%emt 0:00:00]} 2. c4 {[%emt 0:00:39]} e6 {[%emt 0:00:00]} 3. g3 {[%emt 0:00:54]} Bb4+ {[%emt 0:00:00]} 4. Bd2 {[%emt 0:00:58]} a5 {[%emt 0:00:08]} 5. Bg2 {[%emt 0:01:13]} d6 {[%emt 0:00:19]} 6. Nc3 {[%emt 0:02:01]} e5 {[%emt 0:06:15]} 7. d5 {[%emt 0:00:20]} Nbd7 {[%emt 0:01:35]} 8. e4 {[%emt 0:01:12]} Nc5 {[%emt 0:03:28]} 9. Qc2 {[%emt 0:01:02]} h5 {[%emt 0:01:34]} 10. h4 {[%emt 0:01:35]} Ng4 {[%emt 0:01:06]} 11. Nge2 {[%emt 0:02:33]} Bd7 {[%emt 0:05:08]} 12. Rd1 {[%emt 0:12:27]} f6 {[%emt 0:24:28]} 13. f3 {[%emt 0:04:04]} Nh6 {[%emt 0:00:39]} 14. Kf2 {[%emt 0:03:01]} Nf7 {[%emt 0:11:54]} 15. Rdf1 {[%emt 0:02:46]} g5 {[%emt 0:03:39]} 16. hxg5 {[%emt 0:02:30]} fxg5 {[%emt 0:00:14]} 17. Ke1 {[%emt 0:00:36]} Qe7 {[%emt 0:04:22]} 18. Kd1 {[%emt 0:07:41]} Bxc3 {[%emt 0:12:33]} 19. Nxc3 {[%emt 0:00:59]} h4 {[%emt 0:00:48]} 20. g4 {[%emt 0:01:51]} Qf6 {[%emt 0:03:08]} 21. Bh3 {[%emt 0:01:08]} Rg8 {[%emt 0:02:02]} 22. Rh2 {[%emt 0:03:04]} Nh8 {[%emt 0:05:31]} 23. Be3 {[%emt 0:02:13]} Ng6 {[%emt 0:02:05]} 24. Qd2 {[%emt 0:00:10]} Nf4 {[%emt 0:01:39]} 25. Bxf4 {[%emt 0:00:49]} Qxf4 {[%emt 0:00:41]} 26. Qxf4 {[%emt 0:00:08]} exf4 {[%emt 0:00:04]} 27. Kd2 {[%emt 0:00:42]} Kf7 {[%emt 0:00:55]} 28. Re2 {[%emt 0:02:13]} Kf6 {[%emt 0:00:55]} 29. Rfe1 {[%emt 0:00:55]} Rge8 {[%emt 0:00:26]} 30. Kc2 {[%emt 0:00:27]} Re7 {[%emt 0:00:42]} 31. b3 {[%emt 0:00:54]} Be8 {[%emt 0:01:37]} 32. a4 {[%emt 0:02:12]} Nd7 {[%emt 0:01:35]} 33. Na2 {[%emt 0:05:24]} Ne5 {[%emt 0:01:52]} 34. Rf1 {[%emt 0:00:08]} Ra6 {[%emt 0:05:35]} 35. Nc1 {[%emt 0:00:55]} Rb6 {[%emt 0:00:21]} 36. Kc3 {[%emt 0:02:06]} Bd7 {[%emt 0:01:30]} 37. Rd2 {[%emt 0:01:08]} Re8 {[%emt 0:02:32]} 38. Nd3 {[%emt 0:00:23]} Nxd3 {[%emt 0:01:34]} 39. Rxd3 {[%emt 0:00:30]} Ke5 {[%emt 0:01:12]} 40. Rd2 {[%emt 0:00:33]} Rb4 {[%emt 0:02:10]} 41. Rff2 {[%emt 0:10:46]} Rb8 {[%emt 0:10:00]} 42. Bf1 {[%emt 0:04:29]} Be8 {[%emt 0:00:45]} 43. Bd3 {[%emt 0:00:34]} 1/2-1/2